[Event "Live Chess"]
[Site "Chess.com"]
[Date "2010.12.29"]
[Round "-"]
[White "cottonfever"]
[Black "hipposcottimus"]
[Result "1-0"]
[CurrentPosition "r4rk1/3nqppp/p3b3/1p1B4/3p4/N2P1Q1P/PPP2PP1/R3R1K1 b - -"]
[Timezone "UTC"]
[ECO "C61"]
[ECOUrl "https://www.chess.com/openings/Ruy-Lopez-Opening-Birds-Defense-4.Nxd4-exd4-5.d3"]
[UTCDate "2010.12.29"]
[UTCTime "19:48:39"]
[WhiteElo "1351"]
[BlackElo "1422"]
[TimeControl "300+3"]
[Termination "cottonfever won by resignation"]
[StartTime "19:48:39"]
[EndDate "2010.12.29"]
[EndTime "19:53:51"]
[Link "https://www.chess.com/game/live/82277502"]

1. e4 {[%clk 0:05:00]} 1... e5 {[%clk 0:05:00]} 2. Nf3 {[%clk 0:05:02]} 2... Nc6 {[%clk 0:05:01.1]} 3. Bb5 {[%clk 0:05:04]} 3... Nd4 {[%clk 0:04:55.1]} 4. Nxd4 {[%clk 0:05:04.2]} 4... exd4 {[%clk 0:04:52.3]} 5. d3 {[%clk 0:04:44.4]} 5... c6 {[%clk 0:04:51.6]} 6. Ba4 {[%clk 0:04:42.2]} 6... b5 {[%clk 0:04:50.4]} 7. Bb3 {[%clk 0:04:44.2]} 7... d5 {[%clk 0:04:51.3]} 8. exd5 {[%clk 0:04:14.1]} 8... cxd5 {[%clk 0:04:51.9]} 9. Qf3 {[%clk 0:04:15.2]} 9... Be6 {[%clk 0:04:50.1]} 10. O-O {[%clk 0:04:15.3]} 10... Be7 {[%clk 0:04:45.8]} 11. Na3 {[%clk 0:04:07.9]} 11... a6 {[%clk 0:04:36.4]} 12. Re1 {[%clk 0:03:29.7]} 12... Nf6 {[%clk 0:04:37.7]} 13. Bg5 {[%clk 0:03:28.8]} 13... O-O {[%clk 0:04:37.5]} 14. h3 {[%clk 0:03:01.9]} 14... Nd7 {[%clk 0:03:34.9]} 15. Bxe7 {[%clk 0:03:02.2]} 15... Qxe7 {[%clk 0:03:30.7]} 16. Bxd5 {[%clk 0:02:58.4]} 1-0

[Event "Live Chess"]
[Site "Chess.com"]
[Date "2010.12.29"]
[Round "-"]
[White "hipposcottimus"]
[Black "mosadh"]
[Result "1-0"]
[CurrentPosition "rnb1rBk1/p2p1pQp/2p1pPp1/7q/3P4/P4N2/2p2PPP/R4RK1 b - -"]
[Timezone "UTC"]
[ECO "C00"]
[ECOUrl "https://www.chess.com/openings/French-Defense-Normal-Variation"]
[UTCDate "2010.12.29"]
[UTCTime "19:36:48"]
[WhiteElo "1431"]
[BlackElo "1114"]
[TimeControl "480+4"]
[Termination "hipposcottimus won by checkmate"]
[StartTime "19:36:48"]
[EndDate "2010.12.29"]
[EndTime "19:46:59"]
[Link "https://www.chess.com/game/live/82274386"]

1. e4 {[%clk 0:08:00]} 1... e6 {[%clk 0:08:00]} 2. d4 {[%clk 0:07:58.2]} 2... Qh4 {[%clk 0:08:00.9]} 3. Nc3 {[%clk 0:07:41.5]} 3... g6 {[%clk 0:07:59.7]} 4. Nf3 {[%clk 0:07:42.5]} 4... Qf6 {[%clk 0:07:58]} 5. e5 {[%clk 0:07:44.2]} 5... Qe7 {[%clk 0:07:58.5]} 6. Bb5 {[%clk 0:07:45]} 6... Qb4 {[%clk 0:07:49.6]} 7. a3 {[%clk 0:07:42.5]} 7... Qa5 {[%clk 0:07:48.2]} 8. Bd2 {[%clk 0:07:38.1]} 8... Nh6 {[%clk 0:07:38.6]} 9. O-O {[%clk 0:07:28.9]} 9... Bg7 {[%clk 0:07:35]} 10. b3 {[%clk 0:07:24.1]} 10... O-O {[%clk 0:07:29.1]} 11. Ba4 {[%clk 0:07:23.9]} 11... c6 {[%clk 0:07:14.2]} 12. Ne4 {[%clk 0:06:56]} 12... Qd5 {[%clk 0:07:02.8]} 13. Nf6+ {[%clk 0:03:31.3]} 13... Bxf6 {[%clk 0:07:00.6]} 14. exf6 {[%clk 0:03:33.3]} 14... b5 {[%clk 0:06:53.2]} 15. Bxh6 {[%clk 0:03:34.1]} 15... Re8 {[%clk 0:06:51.6]} 16. Qd2 {[%clk 0:03:07]} 16... bxa4 {[%clk 0:06:45.9]} 17. Bg7 {[%clk 0:03:08.1]} 17... axb3 {[%clk 0:06:41.8]} 18. Qh6 {[%clk 0:03:05.9]} 18... bxc2 {[%clk 0:06:35.1]} 19. Bf8 {[%clk 0:02:59.6]} 19... Qh5 {[%clk 0:05:35.7]} 20. Qg7# {[%clk 0:03:00]} 1-0

[Event "Live Chess"]
[Site "Chess.com"]
[Date "2010.12.29"]
[Round "-"]
[White "goshowmen"]
[Black "hipposcottimus"]
[Result "1-0"]
[CurrentPosition "5rk1/p1Q2qpp/R3p3/2p5/5B2/1P2P3/5PPP/3R2K1 b - -"]
[Timezone "UTC"]
[ECO "D15"]
[ECOUrl "https://www.chess.com/openings/Slav-Defense-Modern-Three-Knights-Variation"]
[UTCDate "2010.12.29"]
[UTCTime "19:26:19"]
[WhiteElo "1431"]
[BlackElo "1429"]
[TimeControl "120+12"]
[Termination "goshowmen won by resignation"]
[StartTime "19:26:19"]
[EndDate "2010.12.29"]
[EndTime "19:32:59"]
[Link "https://www.chess.com/game/live/82271406"]

1. d4 {[%clk 0:02:00]} 1... d5 {[%clk 0:02:00]} 2. c4 {[%clk 0:02:09.8]} 2... c6 {[%clk 0:02:10.6]} 3. Nf3 {[%clk 0:02:18.7]} 3... Nf6 {[%clk 0:02:20.1]} 4. Nc3 {[%clk 0:02:28.7]} 4... Nbd7 {[%clk 0:02:29.5]} 5. Bg5 {[%clk 0:02:38.5]} 5... e6 {[%clk 0:02:40.2]} 6. e3 {[%clk 0:02:47.9]} 6... Bb4 {[%clk 0:02:50.4]} 7. Qc2 {[%clk 0:02:50.9]} 7... Bxc3+ {[%clk 0:03:00.5]} 8. Qxc3 {[%clk 0:03:00.7]} 8... O-O {[%clk 0:03:03.9]} 9. Bd3 {[%clk 0:03:08.3]} 9... Qc7 {[%clk 0:02:52.5]} 10. Ne5 {[%clk 0:03:13.1]} 10... Nxe5 {[%clk 0:02:57.1]} 11. dxe5 {[%clk 0:03:20.7]} 11... Ne4 {[%clk 0:03:06.2]} 12. Bxe4 {[%clk 0:03:18.2]} 12... dxe4 {[%clk 0:03:16.8]} 13. O-O {[%clk 0:03:22.2]} 13... c5 {[%clk 0:03:20]} 14. Bf4 {[%clk 0:03:20.5]} 14... Qd7 {[%clk 0:03:11.5]} 15. Qc2 {[%clk 0:03:25.4]} 15... f6 {[%clk 0:03:17.2]} 16. Qxe4 {[%clk 0:03:25.4]} 16... fxe5 {[%clk 0:03:22.5]} 17. Qxe5 {[%clk 0:03:22.2]} 17... b6 {[%clk 0:03:17.2]} 18. Rad1 {[%clk 0:03:23.1]} 18... Qf7 {[%clk 0:03:22]} 19. Rd2 {[%clk 0:03:06.5]} 19... Ba6 {[%clk 0:03:31.7]} 20. b3 {[%clk 0:03:13.1]} 20... Rac8 {[%clk 0:03:38.2]} 21. Rfd1 {[%clk 0:03:18.7]} 21... b5 {[%clk 0:03:41.4]} 22. Rd6 {[%clk 0:03:20.8]} 22... bxc4 {[%clk 0:03:24.8]} 23. Rxa6 {[%clk 0:03:27.1]} 23... cxb3 {[%clk 0:03:35.4]} 24. axb3 {[%clk 0:03:33.4]} 24... Rc7 {[%clk 0:03:45.2]} 25. Qxc7 {[%clk 0:03:35.9]} 1-0

[Event "Live Chess"]
[Site "Chess.com"]
[Date "2010.12.29"]
[Round "-"]
[White "tonisasongko"]
[Black "hipposcottimus"]
[Result "0-1"]
[CurrentPosition "4r1k1/pp4pp/5pb1/6n1/2P3PK/P2q3P/3r4/1R6 w - -"]
[Timezone "UTC"]
[ECO "D00"]
[ECOUrl "https://www.chess.com/openings/Queens-Pawn-Opening-1...d5"]
[UTCDate "2010.12.29"]
[UTCTime "18:58:20"]
[WhiteElo "1352"]
[BlackElo "1437"]
[TimeControl "600"]
[Termination "hipposcottimus won on time"]
[StartTime "18:58:20"]
[EndDate "2010.12.29"]
[EndTime "19:17:03"]
[Link "https://www.chess.com/game/live/82263167"]

1. d4 {[%clk 0:10:00]} 1... d5 {[%clk 0:10:00]} 2. h3 {[%clk 0:09:50.7]} 2... c5 {[%clk 0:09:54.2]} 3. c4 {[%clk 0:09:45]} 3... cxd4 {[%clk 0:09:41.6]} 4. Qxd4 {[%clk 0:09:37.9]} 4... Nf6 {[%clk 0:09:37.2]} 5. Nf3 {[%clk 0:09:22.5]} 5... Nc6 {[%clk 0:09:23.9]} 6. Qd1 {[%clk 0:08:19.2]} 6... e5 {[%clk 0:09:17.4]} 7. Bg5 {[%clk 0:08:02.7]} 7... d4 {[%clk 0:08:21.2]} 8. e3 {[%clk 0:07:45.4]} 8... Bc5 {[%clk 0:07:52.1]} 9. Qa4 {[%clk 0:07:28.8]} 9... O-O {[%clk 0:07:35.6]} 10. Bd3 {[%clk 0:07:06.7]} 10... dxe3 {[%clk 0:07:29.6]} 11. Qc2 {[%clk 0:06:09.7]} 11... exf2+ {[%clk 0:07:25.4]} 12. Kf1 {[%clk 0:06:04.6]} 12... Qe7 {[%clk 0:06:38]} 13. a3 {[%clk 0:05:55.6]} 13... e4 {[%clk 0:06:24.8]} 14. Bxf6 {[%clk 0:05:44.4]} 14... exd3 {[%clk 0:05:31.4]} 15. Qxd3 {[%clk 0:05:18.4]} 15... Qxf6 {[%clk 0:05:28]} 16. Nbd2 {[%clk 0:05:05.9]} 16... Bf5 {[%clk 0:05:10]} 17. Qd5 {[%clk 0:04:43.1]} 17... Qxb2 {[%clk 0:04:49.2]} 18. Rd1 {[%clk 0:04:14.8]} 18... Qc2 {[%clk 0:03:44.4]} 19. Rb1 {[%clk 0:03:41.6]} 19... Be3 {[%clk 0:03:27.3]} 20. g4 {[%clk 0:02:44.4]} 20... Bg6 {[%clk 0:02:54.2]} 21. Kg2 {[%clk 0:02:08.3]} 21... Bxd2 {[%clk 0:02:45.3]} 22. Nxd2 {[%clk 0:01:59.6]} 22... Rfe8 {[%clk 0:02:28.4]} 23. Kxf2 {[%clk 0:01:41.7]} 23... Rad8 {[%clk 0:02:16.4]} 24. Qg5 {[%clk 0:01:30.9]} 24... Rxd2+ {[%clk 0:02:11.3]} 25. Kg3 {[%clk 0:01:21.8]} 25... Qd3+ {[%clk 0:02:10]} 26. Kh4 {[%clk 0:01:17.7]} 26... Ne5 {[%clk 0:01:48.8]} 27. Rhe1 {[%clk 0:00:40.3]} 27... Nf3+ {[%clk 0:01:31.7]} 28. Kg3 {[%clk 0:00:30.2]} 28... Nxe1+ {[%clk 0:01:28.4]} 29. Kh4 {[%clk 0:00:22.5]} 29... Nf3+ {[%clk 0:01:26.6]} 30. Kg3 {[%clk 0:00:18.8]} 30... Nxg5+ {[%clk 0:01:24.8]} 31. Kh4 {[%clk 0:00:15.6]} 31... f6 {[%clk 0:01:17.4]} 0-1

[Event "Live Chess"]
[Site "Chess.com"]
[Date "2010.12.29"]
[Round "-"]
[White "RJFWC"]
[Black "hipposcottimus"]
[Result "0-1"]
[CurrentPosition "3r1rk1/p4ppp/6b1/1pP5/P2nN3/1N4PP/5PB1/R5K1 w - -"]
[Timezone "UTC"]
[ECO "C20"]
[ECOUrl "https://www.chess.com/openings/Kings-Pawn-Opening-1...e5"]
[UTCDate "2010.12.29"]
[UTCTime "00:14:53"]
[WhiteElo "1325"]
[BlackElo "1429"]
[TimeControl "240+4"]
[Termination "hipposcottimus won on time"]
[StartTime "00:14:53"]
[EndDate "2010.12.29"]
[EndTime "00:20:56"]
[Link "https://www.chess.com/game/live/82014236"]

1. e4 {[%clk 0:04:00]} 1... e5 {[%clk 0:04:00]} 2. g3 {[%clk 0:04:02.7]} 2... Nf6 {[%clk 0:04:01.5]} 3. d3 {[%clk 0:04:03.6]} 3... c6 {[%clk 0:04:05.2]} 4. Bg2 {[%clk 0:04:06.2]} 4... d5 {[%clk 0:04:08.5]} 5. Bg5 {[%clk 0:04:05.3]} 5... Be7 {[%clk 0:04:11.8]} 6. exd5 {[%clk 0:04:02.9]} 6... cxd5 {[%clk 0:04:12.3]} 7. Nf3 {[%clk 0:04:03.1]} 7... Nc6 {[%clk 0:04:13.3]} 8. O-O {[%clk 0:04:02.3]} 8... Bg4 {[%clk 0:04:12.1]} 9. h3 {[%clk 0:03:59.7]} 9... Bh5 {[%clk 0:04:13.4]} 10. c4 {[%clk 0:03:38.1]} 10... e4 {[%clk 0:04:11]} 11. dxe4 {[%clk 0:03:38.7]} 11... dxe4 {[%clk 0:04:13.1]} 12. Qxd8+ {[%clk 0:03:40.5]} 12... Rxd8 {[%clk 0:04:16.5]} 13. Nfd2 {[%clk 0:03:36.7]} 13... Bg6 {[%clk 0:04:17.5]} 14. Bxf6 {[%clk 0:03:35.2]} 14... Bxf6 {[%clk 0:04:21.2]} 15. Nxe4 {[%clk 0:02:57.3]} 15... Bxb2 {[%clk 0:04:20.9]} 16. Nbd2 {[%clk 0:02:55.1]} 16... Bxa1 {[%clk 0:04:22.8]} 17. Rxa1 {[%clk 0:02:56.7]} 17... O-O {[%clk 0:04:25.4]} 18. Nb3 {[%clk 0:02:04.9]} 18... b6 {[%clk 0:03:58.2]} 19. c5 {[%clk 0:02:01.8]} 19... b5 {[%clk 0:03:56.4]} 20. a4 {[%clk 0:01:58.3]} 20... Nd4 {[%clk 0:02:49.4]} 0-1

[Event "Live Chess"]
[Site "Chess.com"]
[Date "2010.12.28"]
[Round "-"]
[White "hipposcottimus"]
[Black "moderno"]
[Result "1-0"]
[CurrentPosition "8/7k/5K2/6Q1/8/8/8/8 b - -"]
[Timezone "UTC"]
[ECO "B06"]
[ECOUrl "https://www.chess.com/openings/Modern-Defense-with-1-e4-2.d4-Bg7"]
[UTCDate "2010.12.28"]
[UTCTime "23:55:19"]
[WhiteElo "1423"]
[BlackElo "1583"]
[TimeControl "600"]
[Termination "hipposcottimus won by resignation"]
[StartTime "23:55:19"]
[EndDate "2010.12.29"]
[EndTime "00:10:33"]
[Link "https://www.chess.com/game/live/82009893"]

1. e4 {[%clk 0:10:00]} 1... g6 {[%clk 0:10:00]} 2. d4 {[%clk 0:09:58.4]} 2... Bg7 {[%clk 0:10:00]} 3. e5 {[%clk 0:09:57.9]} 3... d6 {[%clk 0:09:59.6]} 4. f4 {[%clk 0:09:56.2]} 4... dxe5 {[%clk 0:09:55.5]} 5. fxe5 {[%clk 0:09:54.7]} 5... c5 {[%clk 0:09:52.2]} 6. c3 {[%clk 0:09:52.7]} 6... cxd4 {[%clk 0:09:45.7]} 7. cxd4 {[%clk 0:09:51.1]} 7... Nc6 {[%clk 0:09:41.6]} 8. Nf3 {[%clk 0:09:49.1]} 8... Bg4 {[%clk 0:09:38.2]} 9. Bb5 {[%clk 0:09:47.8]} 9... a6 {[%clk 0:09:35.3]} 10. Bxc6+ {[%clk 0:09:45.1]} 10... bxc6 {[%clk 0:09:34.1]} 11. Be3 {[%clk 0:09:44.3]} 11... c5 {[%clk 0:09:30.9]} 12. Qd3 {[%clk 0:09:38.3]} 12... Bxf3 {[%clk 0:09:27]} 13. gxf3 {[%clk 0:09:38]} 13... cxd4 {[%clk 0:09:21.6]} 14. Bxd4 {[%clk 0:09:37.3]} 14... e6 {[%clk 0:09:19.6]} 15. Nd2 {[%clk 0:09:20.4]} 15... Ne7 {[%clk 0:09:18.2]} 16. Nb3 {[%clk 0:09:15.3]} 16... O-O {[%clk 0:09:13.8]} 17. O-O-O {[%clk 0:09:13.2]} 17... Qc8+ {[%clk 0:09:04.2]} 18. Kb1 {[%clk 0:09:12.5]} 18... Rd8 {[%clk 0:09:01.4]} 19. Qe4 {[%clk 0:09:04.4]} 19... Nf5 {[%clk 0:08:34.2]} 20. Bb6 {[%clk 0:08:58.2]} 20... Rxd1+ {[%clk 0:08:28.5]} 21. Rxd1 {[%clk 0:08:57.8]} 21... Qb8 {[%clk 0:07:45]} 22. Rd8+ {[%clk 0:08:53.4]} 22... Qxd8 {[%clk 0:07:43.7]} 23. Bxd8 {[%clk 0:08:52.5]} 23... Rxd8 {[%clk 0:07:42.6]} 24. Nc5 {[%clk 0:08:51.4]} 24... Rd5 {[%clk 0:07:38.9]} 25. Nxa6 {[%clk 0:08:47.2]} 25... Rxe5 {[%clk 0:07:36.7]} 26. Qa8+ {[%clk 0:08:44.2]} 26... Bf8 {[%clk 0:07:34.3]} 27. f4 {[%clk 0:08:33.3]} 27... Re1+ {[%clk 0:07:29.9]} 28. Kc2 {[%clk 0:08:27.5]} 28... Nd4+ {[%clk 0:07:17.5]} 29. Kd2 {[%clk 0:08:00.6]} 29... Ra1 {[%clk 0:06:47.9]} 30. Nc5 {[%clk 0:07:38]} 30... Rb1 {[%clk 0:06:21.1]} 31. Nd7 {[%clk 0:07:27.5]} 31... Rxb2+ {[%clk 0:06:18.9]} 32. Kc3 {[%clk 0:07:21.8]} 32... Rc2+ {[%clk 0:05:48.4]} 33. Kxd4 {[%clk 0:07:18.5]} 33... Rd2+ {[%clk 0:05:47.5]} 34. Kc3 {[%clk 0:07:16.8]} 34... Rxd7 {[%clk 0:05:47.1]} 35. a4 {[%clk 0:07:01.5]} 35... Kg7 {[%clk 0:05:37.3]} 36. a5 {[%clk 0:06:59.6]} 36... Rc7+ {[%clk 0:05:33.4]} 37. Kb3 {[%clk 0:06:57.8]} 37... Bc5 {[%clk 0:05:25.7]} 38. a6 {[%clk 0:06:48.8]} 38... Ra7 {[%clk 0:05:22.4]} 39. Qc6 {[%clk 0:06:39.7]} 39... Bd4 {[%clk 0:05:17.2]} 40. Kc4 {[%clk 0:06:16]} 40... Bg1 {[%clk 0:05:13.9]} 41. Kb5 {[%clk 0:06:11.1]} 41... Bxh2 {[%clk 0:04:59.3]} 42. Qd6 {[%clk 0:05:40.1]} 42... Bg1 {[%clk 0:04:24.9]} 43. Qa3 {[%clk 0:04:47.3]} 43... h5 {[%clk 0:04:15.8]} 44. Kc4 {[%clk 0:04:43.7]} 44... h4 {[%clk 0:04:07]} 45. Qa1+ {[%clk 0:04:27.2]} 45... f6 {[%clk 0:03:47.5]} 46. Qxg1 {[%clk 0:04:17.5]} 46... Rc7+ {[%clk 0:03:43.1]} 47. Kb5 {[%clk 0:04:14.2]} 47... Rc8 {[%clk 0:03:34.9]} 48. a7 {[%clk 0:04:11]} 48... Kh6 {[%clk 0:03:32.8]} 49. Ka6 {[%clk 0:04:04.6]} 49... g5 {[%clk 0:03:31.5]} 50. fxg5+ {[%clk 0:03:58.5]} 50... fxg5 {[%clk 0:03:30.5]} 51. Kb7 {[%clk 0:03:54.6]} 51... Rf8 {[%clk 0:03:23]} 52. Qg4 {[%clk 0:03:37.3]} 52... Rf7+ {[%clk 0:03:01.2]} 53. Kb8 {[%clk 0:03:30.9]} 53... Rf8+ {[%clk 0:03:00.1]} 54. Kc7 {[%clk 0:03:20.1]} 54... Rf7+ {[%clk 0:02:58.9]} 55. Kb6 {[%clk 0:03:18.5]} 55... Rxa7 {[%clk 0:02:48.7]} 56. Qxe6+ {[%clk 0:03:12.7]} 56... Kh5 {[%clk 0:02:45.6]} 57. Kxa7 {[%clk 0:03:12.3]} 57... h3 {[%clk 0:02:42.2]} 58. Qxh3+ {[%clk 0:03:09.2]} 58... Kg6 {[%clk 0:02:41]} 59. Qg4 {[%clk 0:03:08.2]} 59... Kh6 {[%clk 0:02:39.6]} 60. Kb6 {[%clk 0:03:06.8]} 60... Kg6 {[%clk 0:02:38.6]} 61. Kc6 {[%clk 0:03:06]} 61... Kf6 {[%clk 0:02:37.2]} 62. Kd6 {[%clk 0:03:01.7]} 62... Kg6 {[%clk 0:02:36]} 63. Ke6 {[%clk 0:02:54.9]} 63... Kh6 {[%clk 0:02:33]} 64. Kf6 {[%clk 0:02:49.8]} 64... Kh7 {[%clk 0:02:31.7]} 65. Qxg5 {[%clk 0:02:46.9]} 1-0

[Event "Live Chess"]
[Site "Chess.com"]
[Date "2010.12.28"]
[Round "-"]
[White "hipposcottimus"]
[Black "DivelTransFontaine"]
[Result "0-1"]
[CurrentPosition "r3qrk1/ppp2ppp/8/P3p1B1/1Pb1P1n1/1QP5/3N2PP/4R2K w - -"]
[Timezone "UTC"]
[ECO "C50"]
[ECOUrl "https://www.chess.com/openings/Giuoco-Piano-Game-4.O-O-Nf6"]
[UTCDate "2010.12.28"]
[UTCTime "22:54:06"]
[WhiteElo "1410"]
[BlackElo "1517"]
[TimeControl "300"]
[Termination "DivelTransFontaine won by resignation"]
[StartTime "22:54:06"]
[EndDate "2010.12.28"]
[EndTime "22:57:17"]
[Link "https://www.chess.com/game/live/81995295"]

1. e4 {[%clk 0:05:00]} 1... e5 {[%clk 0:05:00]} 2. Nf3 {[%clk 0:04:57.3]} 2... Nc6 {[%clk 0:04:58.4]} 3. Bc4 {[%clk 0:04:40.2]} 3... Bc5 {[%clk 0:04:56.5]} 4. O-O {[%clk 0:04:37.3]} 4... Nf6 {[%clk 0:04:54.8]} 5. b4 {[%clk 0:04:36.6]} 5... Bd4 {[%clk 0:04:49.2]} 6. c3 {[%clk 0:04:35.1]} 6... Bb6 {[%clk 0:04:47.2]} 7. Re1 {[%clk 0:04:31.8]} 7... d6 {[%clk 0:04:43.2]} 8. d3 {[%clk 0:04:29.2]} 8... O-O {[%clk 0:04:40.8]} 9. Bg5 {[%clk 0:04:28.9]} 9... Nb8 {[%clk 0:04:15.1]} 10. d4 {[%clk 0:04:26.3]} 10... Nbd7 {[%clk 0:04:13.3]} 11. dxe5 {[%clk 0:04:19.1]} 11... dxe5 {[%clk 0:04:11.1]} 12. a4 {[%clk 0:04:13.2]} 12... Qe8 {[%clk 0:04:00.7]} 13. Qb3 {[%clk 0:03:51.1]} 13... Ng4 {[%clk 0:03:55.7]} 14. Nbd2 {[%clk 0:03:43.1]} 14... Bxf2+ {[%clk 0:03:49.7]} 15. Kh1 {[%clk 0:03:40.6]} 15... Bxe1 {[%clk 0:03:48.4]} 16. Rxe1 {[%clk 0:03:40.3]} 16... Nb6 {[%clk 0:03:39.8]} 17. a5 {[%clk 0:03:30.1]} 17... Nxc4 {[%clk 0:03:35.2]} 18. Nxc4 {[%clk 0:03:29.8]} 18... Be6 {[%clk 0:03:34.3]} 19. Nfd2 {[%clk 0:03:26.5]} 19... Bxc4 {[%clk 0:03:32.1]} 0-1

[Event "Live Chess"]
[Site "Chess.com"]
[Date "2010.12.28"]
[Round "-"]
[White "hipposcottimus"]
[Black "Wassmann"]
[Result "1-0"]
[CurrentPosition "8/8/1R6/p5k1/1p2K3/8/8/8 b - -"]
[Timezone "UTC"]
[ECO "B20"]
[ECOUrl "https://www.chess.com/openings/Sicilian-Defense"]
[UTCDate "2010.12.28"]
[UTCTime "21:53:54"]
[WhiteElo "1416"]
[BlackElo "1464"]
[TimeControl "300+7"]
[Termination "hipposcottimus won by resignation"]
[StartTime "21:53:54"]
[EndDate "2010.12.28"]
[EndTime "22:11:57"]
[Link "https://www.chess.com/game/live/81979285"]

1. e4 {[%clk 0:05:00]} 1... c5 {[%clk 0:05:00]} 2. Bb5 {[%clk 0:05:04.1]} 2... a6 {[%clk 0:04:48.9]} 3. Be2 {[%clk 0:05:10]} 3... Nc6 {[%clk 0:04:53.5]} 4. Nf3 {[%clk 0:05:14.5]} 4... d6 {[%clk 0:04:57.9]} 5. d4 {[%clk 0:05:19.9]} 5... cxd4 {[%clk 0:05:02.3]} 6. Nxd4 {[%clk 0:05:26.1]} 6... Nf6 {[%clk 0:05:01.5]} 7. f3 {[%clk 0:05:28.8]} 7... e6 {[%clk 0:05:06.7]} 8. Nc3 {[%clk 0:05:32.6]} 8... Be7 {[%clk 0:05:12]} 9. O-O {[%clk 0:05:38]} 9... O-O {[%clk 0:05:16]} 10. a3 {[%clk 0:05:37.6]} 10... Nd7 {[%clk 0:05:05.3]} 11. Qd3 {[%clk 0:05:35.2]} 11... Nde5 {[%clk 0:05:06.5]} 12. Qe3 {[%clk 0:05:32.2]} 12... f5 {[%clk 0:04:29.1]} 13. f4 {[%clk 0:05:34.5]} 13... Ng4 {[%clk 0:04:22.8]} 14. Bxg4 {[%clk 0:05:39.3]} 14... fxg4 {[%clk 0:04:28.4]} 15. Qg3 {[%clk 0:05:44]} 15... e5 {[%clk 0:04:32.2]} 16. f5 {[%clk 0:05:47.6]} 16... exd4 {[%clk 0:04:35.9]} 17. Nd5 {[%clk 0:05:52.9]} 17... Ne5 {[%clk 0:04:30.1]} 18. c3 {[%clk 0:05:51.7]} 18... dxc3 {[%clk 0:04:23.9]} 19. bxc3 {[%clk 0:05:56.6]} 19... Bh4 {[%clk 0:04:20.3]} 20. Qf4 {[%clk 0:05:59.3]} 20... Bg5 {[%clk 0:04:06.2]} 21. Qxg5 {[%clk 0:06:02.7]} 21... Qxg5 {[%clk 0:03:47.1]} 22. Bxg5 {[%clk 0:06:07.9]} 22... h6 {[%clk 0:03:49.2]} 23. Be7 {[%clk 0:06:13.3]} 23... Re8 {[%clk 0:03:54.7]} 24. Bxd6 {[%clk 0:06:19.1]} 24... Nc4 {[%clk 0:03:55.3]} 25. Rf4 {[%clk 0:06:21]} 25... Nxd6 {[%clk 0:03:59.7]} 26. Nc7 {[%clk 0:06:14.6]} 26... Rxe4 {[%clk 0:03:42.1]} 27. Rxe4 {[%clk 0:06:19.6]} 27... Nxe4 {[%clk 0:03:47.3]} 28. Nxa8 {[%clk 0:06:25.9]} 28... Bxf5 {[%clk 0:03:45.5]} 29. c4 {[%clk 0:06:16.9]} 29... Nc5 {[%clk 0:03:42.1]} 30. Rd1 {[%clk 0:06:11.4]} 30... Bd3 {[%clk 0:03:42.4]} 31. Nb6 {[%clk 0:06:12.9]} 31... Kf7 {[%clk 0:03:27.4]} 32. Kf2 {[%clk 0:06:13.6]} 32... Ke6 {[%clk 0:03:16.6]} 33. a4 {[%clk 0:06:13.6]} 33... Kd6 {[%clk 0:03:03.7]} 34. a5 {[%clk 0:06:17.5]} 34... Ke5 {[%clk 0:02:56.6]} 35. Ke3 {[%clk 0:06:23.4]} 35... g5 {[%clk 0:02:51.2]} 36. Rd2 {[%clk 0:06:10.7]} 36... h5 {[%clk 0:02:32.1]} 37. Rd1 {[%clk 0:06:11.1]} 37... h4 {[%clk 0:02:32.5]} 38. g3 {[%clk 0:06:13.2]} 38... hxg3 {[%clk 0:02:25.2]} 39. hxg3 {[%clk 0:06:18.8]} 39... Be4 {[%clk 0:02:15.6]} 40. Rd4 {[%clk 0:05:57.6]} 40... Bc6 {[%clk 0:01:57.5]} 41. Rxg4 {[%clk 0:05:56.1]} 41... Kf5 {[%clk 0:01:34.1]} 42. Rd4 {[%clk 0:05:48.9]} 42... Nb3 {[%clk 0:01:32.4]} 43. g4+ {[%clk 0:04:55.7]} 43... Ke5 {[%clk 0:01:26.7]} 44. Rd3 {[%clk 0:04:26.9]} 44... Nxa5 {[%clk 0:01:26.3]} 45. Nd7+ {[%clk 0:04:16.3]} 45... Bxd7 {[%clk 0:01:10.8]} 46. Rxd7 {[%clk 0:04:20.2]} 46... Nxc4+ {[%clk 0:01:15.8]} 47. Kd3 {[%clk 0:04:26.3]} 47... Na5 {[%clk 0:01:02.7]} 48. Rf7 {[%clk 0:04:31.8]} 48... Ke6 {[%clk 0:00:46.6]} 49. Rf5 {[%clk 0:04:37.7]} 49... Nc6 {[%clk 0:00:42.2]} 50. Rxg5 {[%clk 0:04:41.2]} 50... b5 {[%clk 0:00:38.1]} 51. Ke4 {[%clk 0:04:29.8]} 51... Kf6 {[%clk 0:00:29.5]} 52. Rf5+ {[%clk 0:04:30.8]} 52... Kg6 {[%clk 0:00:32]} 53. g5 {[%clk 0:04:33.7]} 53... b4 {[%clk 0:00:25.9]} 54. Rf6+ {[%clk 0:04:38.6]} 54... Kxg5 {[%clk 0:00:29.6]} 55. Rxc6 {[%clk 0:04:44]} 55... a5 {[%clk 0:00:34.6]} 56. Rb6 {[%clk 0:04:47.8]} 1-0